fUST/lending_fUST_20251224
["ID","MTS","AMOUNT","RATE_DAILY","PERIOD"]
[399614586,1766548239842,-155.59025259,6.849e-05,2]
[399614588,1766548239853,-287.666,6.976e-05,2]
[399614590,1766548239863,-416.0,6.976e-05,2]
[399614592,1766548239874,-1363.0,6.976e-05,2]
[399614594,1766548239884,-2160.0,6.976e-05,2]
[399614596,1766548239894,-633.0,6.976e-05,2]
[399614598,1766548239903,-171.21960689,7.04e-05,2]
[399614600,1766548239912,-500.0,7.054e-05,2]
[399614602,1766548239923,-341.71,7.113e-05,2]
[399614604,1766548239933,-1000.0,7.13e-05,2]
[399614606,1766548239942,-244.0,7.13e-05,2]
[399614608,1766548239951,-150.421,7.327e-05,2]
[399614610,1766548239961,-231.805,7.327e-05,2]
[399614612,1766548239970,-150.0,7.327e-05,2]
[399614614,1766548239979,-500.0,7.426e-05,2]
[399614616,1766548239988,-512.57,7.706e-05,2]
[399614618,1766548239997,-500.0,7.817e-05,2]
[399614620,1766548240007,-1000.0,7.843e-05,2]
[399614622,1766548240018,-492.0,7.843e-05,2]
[399614624,1766548240028,-200.0,8e-05,7]
[399614626,1766548240039,-488.68197209,8.176e-05,2]
[399614628,1766548240048,-500.0,8.219e-05,2]
[399614630,1766548240058,-409.92780841,8.219e-05,2]
[399614632,1766548240067,-500.0,8.219e-05,2]
[399614634,1766548240077,-159.50093845,8.219e-05,2]
[399614636,1766548240088,-500.0,8.219e-05,2]
[399614638,1766548240097,-500.0,8.219e-05,2]
[399614640,1766548240107,-150.0,8.219e-05,2]
[399614642,1766548240116,-159.63944667,8.219e-05,2]
[399614644,1766548240125,-514.96946644,8.219e-05,2]
[399614646,1766548240135,-151.0,8.219e-05,2]
[399614648,1766548240144,-151.0,8.219e-05,2]
[399614650,1766548240154,-151.0,8.219e-05,2]
[399614652,1766548240164,-151.0,8.219e-05,2]
[399614653,1766548240173,-151.0,8.219e-05,2]
[399614655,1766548240183,-151.0,8.219e-05,2]
[399614657,1766548240192,-151.0,8.219e-05,2]
[399614659,1766548240201,-277.307518,8.219e-05,2]
[399614661,1766548240212,-500.0,8.228e-05,2]
[399614663,1766548240222,-683.42,8.299e-05,2]
[399614665,1766548240231,-500.0,8.356e-05,2]
[399614667,1766548240241,-500.0,8.356e-05,2]
[399614669,1766548240251,-550.97195858,8.356e-05,2]
[399614671,1766548240260,-150.0,8.356e-05,2]
[399614673,1766548240270,-500.0,8.483e-05,2]
[399614675,1766548240280,-500.0,8.493e-05,2]
[399614677,1766548240290,-500.0,8.493e-05,2]
[399614679,1766548240299,-214.98671917,8.493e-05,2]
[399614681,1766548240309,-1000.0,8.627e-05,2]
[399614683,1766548240319,-791.0,8.627e-05,2]
[399614685,1766548240329,-500.0,8.63e-05,2]
[399614687,1766548240342,-500.0,8.63e-05,2]
[399614689,1766548240351,-500.0,8.639e-05,2]
[399614691,1766548240362,-500.0,8.767e-05,2]
[399614693,1766548240371,-500.0,8.767e-05,2]
[399614695,1766548240381,-854.28,8.892e-05,2]
[399614697,1766548240390,-158.14721538,8.904e-05,2]
[399614699,1766548240400,-500.0,8.904e-05,2]
[399614701,1766548240410,-500.0,9.041e-05,2]
[399614703,1766548240420,-500.0,9.071e-05,2]
[399614704,1766548240430,-324.56170115,9.178e-05,2]
[399614705,1766548240440,-600.0,9.376e-05,2]
[399614706,1766548240449,-1025.13,9.484e-05,2]
[399614707,1766548240460,-1000.0,9.49e-05,2]
[399614708,1766548240471,-1000.0,9.49e-05,2]
[399614709,1766548240480,-600.0,9.52e-05,2]
[399614710,1766548240490,-500.0,9.525e-05,2]
[399614711,1766548240499,-151.0,9.589e-05,2]
[399614712,1766548240509,-151.0,9.589e-05,2]
[399614713,1766548240518,-600.0,9.66e-05,2]
[399614714,1766548240528,-153.0,9.726e-05,2]
[399614715,1766548240538,-153.0,9.726e-05,2]
[399614716,1766548240548,-153.0,9.726e-05,2]
[399614717,1766548240558,-153.0,9.726e-05,2]
[399614718,1766548240568,-153.0,9.726e-05,2]
[399614719,1766548240578,-500.0,9.837e-05,2]
[399614720,1766548240588,-151.0,9.976e-05,2]
[399614721,1766548240598,-151.0,9.976e-05,2]
[399614722,1766548240608,-151.0,9.976e-05,2]
[399614723,1766548240618,-151.0,9.976e-05,2]
[399614724,1766548240627,-416.0,9.976e-05,2]
[399614725,1766548240637,-960.775,9.976e-05,2]
[399614726,1766548240647,-2160.0,9.976e-05,2]
[399614728,1766548240656,-633.0,9.976e-05,2]
[399614729,1766548240666,-300.0,0.0001,2]
[399614730,1766548240676,-29822.91898742,0.0001,2]
[399614731,1766548240684,-500.0,0.0001,2]
[399614732,1766548240694,-151.949174,0.0001,2]
[399614733,1766548240703,-151.0,0.0001,2]
[399614734,1766548240713,-151.0,0.0001,2]
[399614735,1766548240722,-151.0,0.0001,2]
[399614736,1766548240732,-500.0,0.00010001,2]
[399614737,1766548240742,-1195.99,0.00010077,2]
[399614739,1766548240752,-600.0,0.00010141,2]
[399614741,1766548240762,-500.0,0.00010176,2]
[399614743,1766548240774,-553.3604684,0.00010176,2]
[399614745,1766548240784,-150.0,0.00010327,2]
[399614747,1766548240794,-1000.0,0.00010439,2]
[399614749,1766548240804,-1000.0,0.00010439,2]
[399614751,1766548240813,-579.0,0.00010439,2]
[399614753,1766548240824,-500.0,0.00010501,2]
[399614755,1766548240833,-153.0,0.00010548,2]
[399614757,1766548240844,-323.7927805,0.00010548,2]
[399614759,1766548240854,-1366.85,0.0001067,2]
[399614761,1766548240864,-600.0,0.00010797,2]
[399614763,1766548240874,-278.839294,0.00010959,2]
[399614765,1766548240886,-151.0,0.00010959,2]
[399614767,1766548240896,-151.0,0.00010959,2]
[399614769,1766548240906,-500.0,0.00010959,2]
[399614771,1766548240916,-416.79958527,0.00010959,2]
[399614773,1766548240925,-500.0,0.00010959,2]
[399614775,1766548240935,-500.0,0.00010959,2]
[399614777,1766548240944,-500.0,0.00010959,2]
[399614779,1766548240954,-672.32013961,0.00011,2]
[399614781,1766548240963,-500.0,0.00011026,2]
[399614783,1766548240972,-342.79,0.00011164,2]
[399614785,1766548240982,-182.491,0.00011164,2]
[399614787,1766548240991,-1537.7,0.00011263,2]
[399614788,1766548241001,-151.0,0.000113,2]
[399614789,1766548241010,-151.0,0.000113,2]
[399614790,1766548241020,-160.0,0.00011317,3]
[399614791,1766548241030,-600.0,0.00011412,2]
[399614792,1766548241039,-1000.0,0.00011483,2]
[399614793,1766548241049,-1000.0,0.00011483,2]
[399614794,1766548241058,-1000.0,0.00011483,2]
[399614795,1766548241068,-500.0,0.00011578,2]
[399614796,1766548241078,-151.0,0.000116,2]
[399614797,1766548241087,-151.0,0.000116,2]
[399614798,1766548241097,-12652.0827752,0.00011756,2]
[399614799,1766548241106,-151.0,0.00011756,2]
[399614800,1766548241115,-151.0,0.00011756,2]
[399614801,1766548241125,-151.0,0.00011756,2]
[399614802,1766548241134,-4305.95445891,0.00011756,2]
[399614803,1766548241143,-600.0,0.0001177,2]
[399614804,1766548241153,-1000.0,0.000118,2]
[399614805,1766548241163,-160.0,0.00011846,4]
[399614806,1766548241172,-1708.56,0.00011855,2]
[399614807,1766548241181,-151.0,0.000119,2]
[399614808,1766548241191,-151.0,0.000119,2]
[399614809,1766548241201,-151.0,0.000119,2]
[399614810,1766548241210,-600.0,0.00011955,2]
[399614811,1766548241220,-751.00063327,0.00012,2]
[399614812,1766548241229,-309.0116689,0.00012082,2]
[399614813,1766548241240,-1194.9799272,0.00012082,2]
[399614814,1766548241250,-155.4305453,0.00012082,2]
[399614815,1766548241260,-500.86789138,0.00012157,2]
[399614817,1766548241270,-618.0389647,0.00012176,2]
[399614818,1766548241280,-362.86972871,0.00012181,2]
[399614819,1766548241290,-151.0,0.000122,2]
[399614821,1766548241300,-151.0,0.000122,2]
[399614823,1766548241309,-151.0,0.000122,2]
[399614825,1766548241319,-500.0,0.00012219,2]
[399614827,1766548241328,-600.0,0.00012288,2]
[399614829,1766548241338,-717.67574315,0.00012321,19]
[399614831,1766548241347,-383.82,0.00012329,2]
[399614833,1766548241357,-319.85,0.00012329,2]
[399614835,1766548241367,-266.54,0.00012329,2]
[399614837,1766548241377,-222.11,0.00012329,2]
[399614839,1766548241387,-185.1,0.00012329,2]
[399614841,1766548241396,-154.25,0.00012329,2]
[399614843,1766548241405,-771.25,0.00012329,2]
[399614845,1766548241415,-160.0,0.00012374,5]
[399614847,1766548241426,-151.0,0.00012398,2]
[399614849,1766548241437,-151.0,0.00012398,2]
[399614851,1766548241447,-151.0,0.000125,2]
[399614853,1766548241457,-151.0,0.000125,2]
[399614855,1766548241467,-151.0,0.000125,2]
[399614857,1766548241477,-500.0,0.00012626,2]
[399614859,1766548241486,-1000.0,0.00012631,2]
[399614861,1766548241496,-1000.0,0.00012631,2]
[399614863,1766548241505,-1000.0,0.00012631,2]
[399614865,1766548241515,-715.0,0.00012631,2]
[399614867,1766548241525,-500.0,0.00012685,2]
[399614869,1766548241535,-1932.19684942,0.0001274,2]
[399614871,1766548241544,-1000.0,0.000128,4]
[399614873,1766548241554,-151.0,0.000128,2]
[399614874,1766548241564,-151.0,0.000128,2]
[399614876,1766548241574,-151.0,0.000128,2]
[399614878,1766548241584,-600.0,0.00012833,2]
[399614880,1766548241595,-28189.31109889,0.00012868,2]
[399614883,1766548241604,-151.0,0.00012868,2]
[399614885,1766548241614,-151.0,0.00012868,2]
[399614887,1766548241624,-151.0,0.00012868,2]
[399614889,1766548241634,-109234.35145244,0.0001287,2]
[399614890,1766548241643,-717.67574315,0.00012887,21]
[399614892,1766548241653,-162.94611957,0.000129,2]
[399614894,1766548241662,-101.50147612,0.000129,2]
[399614899,1766548241704,-22608.88942652,0.000129,2]
[399614901,1766548241714,-22710.3909026,0.000129,2]
[399614903,1766548241723,-22710.3909026,0.000129,2]
[399614905,1766548241734,-160.0,0.00012903,6]
[399614907,1766548241743,-151.0,0.00012976,2]
[399614909,1766548241753,-151.0,0.00012976,2]
[399614911,1766548241762,-416.0,0.00012976,2]
[399614913,1766548241772,-2160.0,0.00012976,2]
[399614915,1766548241782,-633.0,0.00012976,2]
[399614917,1766548241792,-500.0,0.0001298,2]
[399614919,1766548241801,-52884.18390662,0.00013,2]
[399614921,1766548241812,-5257.04851778,0.00013,2]
[399614955,1766548242154,-3e-08,0.00013,2]
[399615101,1766548355992,10000.01,4.075e-05,2]
[399615102,1766548356018,10000.01,4.075e-05,2]
[399615103,1766548356045,10000.01,4.075e-05,2]
[399615104,1766548356071,10000.01,4.075e-05,2]
[399615105,1766548356098,10000.01,4.075e-05,2]
[399615106,1766548356123,10000.01,4.075e-05,2]
[399615107,1766548356148,10000.01,4.075e-05,2]
[399615108,1766548356176,10000.01,4.075e-05,2]
[399615109,1766548356205,10000.01,4.075e-05,2]
[399615110,1766548356231,10000.01,4.075e-05,2]
[399615111,1766548359399,-402.80386082,4.075e-05,2]
[399615112,1766548362550,-318.18380445,4.075e-05,2]
[399615113,1766548365120,-176.18888576,4.075e-05,2]
[399615114,1766548367868,-394.96807965,4.075e-05,2]
[399615115,1766548369431,-199.93475873,4.075e-05,2]
[399615116,1766548372274,-238.01316205,4.075e-05,2]
[399615117,1766548374956,-251.26341123,4.075e-05,2]
[399615118,1766548379880,-246.71556781,4.075e-05,2]
[399615119,1766548383086,-347.2075639,4.075e-05,2]
[399615120,1766548385205,-448.48447247,4.075e-05,2]
[399615121,1766548388273,-236.20781382,4.075e-05,2]
[399615122,1766548392732,-298.31154285,4.075e-05,2]
[399615123,1766548394010,-292.39421842,4.075e-05,2]
[399615124,1766548397201,-737.0287028,4.075e-05,2]
[399615125,1766548400017,-250.28111604,4.075e-05,2]
[399615126,1766548401016,-525.02288117,4.075e-05,2]
[399615127,1766548406794,-278.08591794,4.075e-05,2]
[399615128,1766548409052,-197.09218593,4.075e-05,2]
[399615129,1766548411023,-666.0,4.075e-05,2]
[399615130,1766548412043,-300.0,4.075e-05,2]
[399615131,1766548414525,-180.59410517,4.075e-05,2]
[399615132,1766548417294,-156.57825537,4.075e-05,2]
[399615133,1766548418876,-613.72974229,4.075e-05,2]
[399615134,1766548421997,-168.73784544,4.075e-05,2]
[399615135,1766548423383,-404.72993837,4.075e-05,2]
[399615136,1766548427184,-176.78431186,4.075e-05,2]
[399615137,1766548428743,-184.68968083,4.075e-05,2]
[399615138,1766548430367,-230.48331407,4.075e-05,2]
[399615139,1766548432533,-217.45762535,4.075e-05,2]
[399615140,1766548434264,-298.32210853,4.075e-05,2]
[399615141,1766548437653,-496.10287113,4.075e-05,2]
[399615142,1766548439874,-349.60434305,4.075e-05,2]
[399615143,1766548441465,-245.96685961,4.075e-05,2]
[399615144,1766548444573,5000.0,4.075e-05,2]
[399615145,1766548444604,-226.03353956,4.075e-05,2]
[399615146,1766548447308,-300.0,4.075e-05,2]
[399615147,1766548452263,-313.91690773,4.075e-05,2]
[399615148,1766548454098,-335.2996606,4.075e-05,2]
[399615149,1766548455237,-450.04624967,4.075e-05,2]
[399615150,1766548458570,-300.0,4.075e-05,2]
[399615151,1766548461656,-377.26215459,4.075e-05,2]
[399615152,1766548467154,-379.78237575,4.075e-05,2]
[399615153,1766548467381,5000.0,4.075e-05,2]
[399615154,1766548469257,-169.5106173,4.075e-05,2]
[399615155,1766548470954,-275.18842409,4.075e-05,2]
[399615156,1766548473069,-744.83181146,4.075e-05,2]
[399615157,1766548484114,0.01,4.075e-05,2]
[399615158,1766548484137,1201.7335717,4.075e-05,2]
[399615159,1766548491899,5000.0,4.075e-05,2]
[399615160,1766548502904,-300.0,4.074e-05,2]
[399615161,1766548503063,-342.9814077,4.075e-05,2]
[399615162,1766548503165,-10000.01,4.075e-05,2]
[399615163,1766548503277,-10000.01,4.075e-05,2]
[399615165,1766548503420,-10000.01,4.075e-05,2]
[399615166,1766548503505,-10000.01,4.075e-05,2]
[399615168,1766548503670,-10000.01,4.075e-05,2]
[399615171,1766548503806,-10000.01,4.075e-05,2]
[399615172,1766548503916,-10000.01,4.075e-05,2]
[399615174,1766548504061,-10000.01,4.075e-05,2]
[399615181,1766548506003,-10000.01,4.075e-05,2]
[399615182,1766548516944,5000.0,4.075e-05,2]
[399615183,1766548540291,5000.0,4.075e-05,2]
[399615184,1766548564525,0.01,4.075e-05,2]
[399615185,1766548564549,4999.99,4.075e-05,2]
[399615186,1766548588888,5000.0,4.075e-05,2]
[399615187,1766548612398,0.02,4.075e-05,2]
[399615188,1766548612424,4999.98,4.075e-05,2]
[399615189,1766548618689,-5000.03,4.075e-05,2]
[399615190,1766548618788,-10000.01,4.075e-05,2]
[399615191,1766548618896,-10000.01,4.075e-05,2]
[399615192,1766548618998,-10000.01,4.075e-05,2]
[399615193,1766548619165,-10000.01,4.075e-05,2]
[399615194,1766548619295,-10000.01,4.075e-05,2]
[399615195,1766548619413,-10000.01,4.075e-05,2]
[399615196,1766548619533,-10000.01,4.075e-05,2]
[399615197,1766548635168,5000.0,4.075e-05,2]
[399615198,1766548658195,5000.0,4.075e-05,2]
[399615199,1766548682161,0.01,4.075e-05,2]
[399615200,1766548682185,4999.99,4.075e-05,2]
[399615201,1766548682646,300.0,4.074e-05,2]
[399615202,1766548697412,-4700.02,4.075e-05,2]
[399615203,1766548697498,-10000.01,4.075e-05,2]
[399615204,1766548697710,-10000.01,4.075e-05,2]
[399615205,1766548697851,-10000.01,4.075e-05,2]
[399615206,1766548697985,-10000.01,4.075e-05,2]
[399615207,1766548698477,-10000.01,4.075e-05,2]
[399615208,1766548698492,-10000.01,4.075e-05,2]
[399615209,1766548698506,-10000.01,4.075e-05,2]
[399615210,1766548698537,-10000.01,4.075e-05,2]
[399615211,1766548706415,-5000.0,4.035e-05,2]
[399615212,1766548727896,0.01,4.075e-05,2]
[399615213,1766548727926,4999.99,4.075e-05,2]
[399615214,1766548730883,-5000.01,4.075e-05,2]
[399615215,1766548731007,-10000.01,4.075e-05,2]
[399615216,1766548731109,-10000.01,4.075e-05,2]
[399615217,1766548731215,-10000.01,4.075e-05,2]
[399615218,1766548731338,-10000.01,4.075e-05,2]
[399615219,1766548731440,-10000.01,4.075e-05,2]
[399615220,1766548733777,-10000.01,4.075e-05,2]
[399615221,1766548749567,-500.00196379,4.035e-05,2]
[399615222,1766548751571,-196.61959301,4.035e-05,2]
[399615223,1766548752229,-5000.0,3.995e-05,2]
[399615224,1766548752268,-0.01,4.035e-05,2]
[399615225,1766548752421,-4303.3684432,4.035e-05,2]
[399615226,1766548767399,-300.0,4.074e-05,2]
[399615227,1766548768187,5000.0,4.035e-05,2]
[399615228,1766548777316,4400.01,4.074e-05,2]
[399615229,1766548777339,599.99,4.074e-05,2]
[399615230,1766548793182,5000.0,4.075e-05,2]
[399615231,1766548798208,-5000.02,4.075e-05,2]
[399615232,1766548798525,-10000.01,4.075e-05,2]
[399615233,1766548798619,-10000.01,4.075e-05,2]
[399615234,1766548798739,-10000.01,4.075e-05,2]
[399615235,1766548798849,-2197.21868954,4.075e-05,2]
[399615236,1766548800201,5605.57262092,3.975e-05,2]
[399615237,1766548800229,10000.01,3.975e-05,2]
[399615238,1766548800258,10000.01,3.975e-05,2]
[399615239,1766548800286,10000.01,3.975e-05,2]
[399615240,1766548800313,10000.01,3.975e-05,2]
[399615241,1766548800340,10000.01,3.975e-05,2]
[399615242,1766548800365,10000.01,3.975e-05,2]
[399615243,1766548800391,10000.01,3.975e-05,2]
[399615244,1766548800416,10000.01,3.975e-05,2]
[399615245,1766548802296,-326.42558712,3.975e-05,2]
[399615246,1766548804287,-300.0,3.974e-05,2]
[399615247,1766548804801,1200.0,3.974e-05,2]
[399615248,1766548804896,-246.90883094,3.975e-05,2]
[399615249,1766548807796,-199.02803357,3.975e-05,2]
[399615250,1766548810851,-347.0961284,3.975e-05,2]
[399615251,1766548813009,-153.85640148,3.975e-05,2]
[399615252,1766548815682,-200.0,3.975e-05,2]
[399615253,1766548817288,-500.0,3.975e-05,2]
[399615254,1766548817458,4528.16197542,3.975e-05,2]
[399615255,1766548818874,-650.8925496,3.975e-05,2]
[399615256,1766548821348,-193.6769582,3.975e-05,2]
[399615257,1766548828818,-320.59939884,3.975e-05,2]
[399615258,1766548832752,-236.76731322,3.975e-05,2]
[399615259,1766548834208,-290.05289845,3.975e-05,2]
[399615260,1766548836339,-217.16260715,3.975e-05,2]
[399615261,1766548837404,-176.58140908,3.975e-05,2]
[399615262,1766548840563,-343.58814051,3.975e-05,2]
[399615263,1766548843878,-196.56190467,3.975e-05,2]
[399615264,1766548845355,-184.68304335,3.975e-05,2]
[399615265,1766548846983,-299.4351489,3.975e-05,2]
[399615266,1766548849079,-251.86944242,3.975e-05,2]
[399615267,1766548851013,-229.07904625,3.975e-05,2]
[399615268,1766548853299,-444.43976229,3.975e-05,2]
[399615269,1766548857572,-336.04128795,3.975e-05,2]
[399615270,1766548861562,-417.75946656,3.975e-05,2]
[399615271,1766548862788,300.0,3.974e-05,2]
[399615272,1766548863743,-471.05942776,3.975e-05,2]
[399615273,1766548866244,-582.71037272,3.975e-05,2]
[399615274,1766548868344,-224.60521826,3.975e-05,2]
[399615275,1766548870822,-464.80215162,3.975e-05,2]
[399615276,1766548872304,-266.29517752,3.975e-05,2]
[399615277,1766548873862,-159.30123623,3.975e-05,2]
[399615278,1766548875791,-228.77305958,3.975e-05,2]
[399615279,1766548879094,-433.71963162,3.975e-05,2]
[399615280,1766548881238,-765.85118794,3.975e-05,2]
[399615281,1766548882756,-192.70074819,3.975e-05,2]
[399615282,1766548884790,-348.30389427,3.975e-05,2]
[399615283,1766548886309,-286.77014095,3.975e-05,2]
[399615284,1766548889639,-446.14359852,3.975e-05,2]
[399615285,1766548891356,-370.08682874,3.975e-05,2]
[399615286,1766548894119,-436.98992256,3.975e-05,2]
[399615287,1766548895860,-240.03317121,3.975e-05,2]
[399615288,1766548898569,-183.22191816,3.975e-05,2]
[399615289,1766548901285,-238.87618355,3.975e-05,2]
[399615290,1766548903420,-155.2959668,3.975e-05,2]
[399615291,1766548905542,-279.89688796,3.975e-05,2]
[399615292,1766548907925,-238.55678043,3.975e-05,2]
[399615293,1766548912632,-165.41571232,3.975e-05,2]
[399615294,1766548922389,300.0,3.974e-05,2]
[399615295,1766548926233,-8066.28540366,3.975e-05,2]
[399615296,1766548926325,-10000.01,3.975e-05,2]
[399615297,1766548926569,-10000.01,3.975e-05,2]
[399615298,1766548928942,-10000.01,3.975e-05,2]
[399615299,1766548929079,-10000.01,3.975e-05,2]
[399615300,1766548929199,-10000.01,3.975e-05,2]
[399615301,1766548931910,-10000.01,3.975e-05,2]
[399615302,1766548932214,-10000.01,3.975e-05,2]
[399615303,1766548932335,-10000.01,3.975e-05,2]
[399615304,1766548989381,-173.3121012,3.936e-05,2]
[399615305,1766548992055,-270.62349652,3.936e-05,2]
[399615306,1766548994793,-686.32960048,3.936e-05,2]
[399615307,1766548997447,-243.15425439,3.936e-05,2]
[399615308,1766548998989,-173.3121012,3.897e-05,2]
[399615309,1766548999014,-862.90413669,3.936e-05,2]
[399615310,1766549001127,-517.12768094,3.936e-05,2]
[399615311,1766549002707,-307.23,3.936e-05,2]
[399615312,1766549005318,-326.2278542,3.936e-05,2]
[399615313,1766549007821,-565.21,3.936e-05,2]
[399615314,1766549009993,-259.91451511,3.936e-05,2]
[399615315,1766549011999,-403.71627291,3.936e-05,2]
[399615316,1766549014123,-232.30181117,3.936e-05,2]
[399615317,1766549139772,-263.79218621,3.897e-05,2]
[399615318,1766549141319,-307.09836629,3.897e-05,2]
[399615319,1766549143622,-421.58989119,3.897e-05,2]
[399615320,1766549146134,-318.2538688,3.897e-05,2]
[399615321,1766549149599,-193.83881317,3.897e-05,2]
[399615322,1766549152569,-178.41010881,3.897e-05,2]
[399615323,1766549154105,-189.02931803,3.897e-05,2]
[399615324,1766549157496,-172.878,3.897e-05,2]
[399615325,1766549160153,500.0,0.000154,120]
[399615326,1766549160182,-403.70845104,3.897e-05,2]
[399615327,1766549162743,-293.31108413,3.897e-05,2]
[399615328,1766549164769,-232.26633695,3.897e-05,2]
[399615329,1766549166443,-153.28050547,3.897e-05,2]
[399615330,1766549168544,-626.38343446,3.897e-05,2]
[399615331,1766549170802,-964.51860206,3.897e-05,2]
[399615332,1766549172513,500.0,0.000154,120]
[399615333,1766549173376,-243.4326106,3.897e-05,2]
[399615334,1766549184347,5000.0,3.887e-05,2]
[399615335,1766549206872,5000.0,3.887e-05,2]
[399615336,1766549229375,0.01,3.887e-05,2]
[399615337,1766549229402,4999.99,3.887e-05,2]
[399615338,1766549252935,5000.0,3.887e-05,2]
[399615339,1766549275495,0.02,3.887e-05,2]
[399615340,1766549275518,4999.98,3.887e-05,2]
[399615341,1766549299352,5000.0,3.887e-05,2]
[399615342,1766549314998,0.03,3.887e-05,2]
[399615343,1766549315022,4999.97,3.887e-05,2]
[399615344,1766549322745,5000.0,3.945e-05,2]
[399615345,1766549339197,5000.0,3.945e-05,2]
[399615346,1766549347264,0.01,3.945e-05,2]
[399615347,1766549347289,4999.99,3.945e-05,2]
[399615348,1766549371540,-5000.0,3.876e-05,2]
[399615349,1766549394570,0.01,3.905e-05,2]
[399615350,1766549394593,4999.99,3.905e-05,2]
[399615351,1766549417586,-5000.0,3.876e-05,2]
[399615369,1766549431932,-2208.48107833,3.915e-05,2]
[399615371,1766549431945,-330.25242726,3.915e-05,2]
[399615376,1766549431987,-1051.2016312,3.915e-05,2]
[399615379,1766549432000,-981.35058655,3.915e-05,2]
[399615381,1766549432012,-428.71427666,3.915e-05,2]
[399615383,1766549432022,-39.17294715,3.955e-05,2]
[399615385,1766549432034,-292.82599657,3.955e-05,2]
[399615387,1766549432043,-300.0,3.974e-05,2]
[399615389,1766549432053,-300.0,3.974e-05,2]
[399615391,1766549432063,-874.0,3.974e-05,2]
[399615393,1766549432073,-3502.47410951,3.975e-05,2]
[399615395,1766549432084,-77681.48190452,3.975e-05,2]
[399615397,1766549432094,-300.0,4.054e-05,2]
[399615399,1766549432104,-300.0,4.054e-05,2]
[399615401,1766549432114,-300.0,4.054e-05,2]
[399615403,1766549432123,-300.0,4.054e-05,2]
[399615405,1766549432133,-300.0,4.054e-05,2]
[399615407,1766549432143,-300.0,4.054e-05,2]
[399615409,1766549432153,-300.0,4.054e-05,2]
[399615445,1766549432521,-300.0,4.054e-05,2]
[399615450,1766549432559,-300.0,4.054e-05,2]
[399615452,1766549432570,-300.0,4.054e-05,2]
[399615454,1766549432580,-300.0,4.054e-05,2]
[399615456,1766549432590,-300.0,4.054e-05,2]
[399615458,1766549432599,-300.0,4.054e-05,2]
[399615460,1766549432609,-300.0,4.054e-05,2]
[399615462,1766549432619,-300.0,4.054e-05,2]
[399615464,1766549432628,-600.0,4.054e-05,2]
[399615466,1766549432638,-420.0,4.372e-05,2]
[399615468,1766549432648,-720.0,4.459e-05,2]
[399615470,1766549432657,-577.0,4.809e-05,2]
[399615472,1766549432667,-864.0,4.905e-05,2]
[399615474,1766549432676,-350.67893918,5e-05,2]
[399615476,1766549432685,-500.0,5e-05,2]
[399615478,1766549432695,-500.0,5e-05,2]
[399615480,1766549432705,-500.0,5e-05,2]
[399615482,1766549432715,-422.93117665,5e-05,2]
[399615484,1766549432724,-500.0,5e-05,2]
[399615485,1766549432733,-500.0,5e-05,2]
[399615487,1766549432743,-250.0,5.379e-05,2]
[399615489,1766549432753,-250.0,5.379e-05,2]
[399615491,1766549432763,-250.0,5.379e-05,2]
[399615493,1766549432772,-257.75336872,5.379e-05,2]
[399615495,1766549432782,-151.0,5.379e-05,2]
[399615497,1766549432792,-151.0,5.379e-05,2]
[399615499,1766549432802,-151.0,5.379e-05,2]
[399615501,1766549432811,-151.0,5.379e-05,2]
[399615503,1766549432821,-151.0,5.379e-05,2]
[399615505,1766549432831,-151.0,5.379e-05,2]
[399615507,1766549432841,-151.0,5.379e-05,2]
[399615509,1766549432850,-151.0,5.379e-05,2]
[399615511,1766549432861,-151.0,5.379e-05,2]
[399615513,1766549432871,-151.0,5.379e-05,2]
[399615515,1766549432881,-151.0,5.379e-05,2]
[399615517,1766549432893,-151.0,5.379e-05,2]
[399615519,1766549432903,-151.0,5.379e-05,2]
[399615521,1766549432912,-151.0,5.379e-05,2]
[399615523,1766549432922,-1000.0,5.396e-05,2]
[399615525,1766549432932,-1000.0,5.935e-05,2]
[399615527,1766549432941,-244.0,5.935e-05,2]